[Event "Titled Tuesday Blitz June 13 Early 2023"]
[White "Domingo Nunez, Ruben"]
[Black "Gonzalez Vega, Alejandro"]
[WhiteFideId "22245570"]
[BlackFideId "3510042"]
[WhiteElo "2404"]
[BlackElo "2306"]
[Result "1-0"]
[Round "1"]
[TimeControl "180+2"]
[Date "2023.06.13"]
[WhiteClock "0:00:07"]
[BlackClock "0:00:08"]
[Board "160"]

1. c4 {[%clk 0:02:53]}  e5 {[%clk 0:02:58]} 2. g3 {[%clk 0:02:50]}  Nc6 {[%clk 0:02:56]} 3. Bg2 {[%clk 0:02:50]}  Bc5 {[%clk 0:02:57]} 4. Nc3 {[%clk 0:02:50]}  d6 {[%clk 0:02:58]} 5. a3 {[%clk 0:02:50]}  a6 {[%clk 0:02:58]} 6. b4 {[%clk 0:02:50]}  Ba7 {[%clk 0:02:59]} 7. e3 {[%clk 0:02:50]}  h5 {[%clk 0:02:58]} 8. h3 {[%clk 0:02:48]}  h4 {[%clk 0:02:49]} 9. g4 {[%clk 0:02:47]}  f5 {[%clk 0:02:49]} 10. Bb2 {[%clk 0:02:30]}  Nf6 {[%clk 0:02:31]} 11. gxf5 {[%clk 0:02:18]}  Bxf5 {[%clk 0:02:30]} 12. Qb3 {[%clk 0:02:18]}  Rb8 {[%clk 0:02:10]} 13. O-O-O {[%clk 0:02:15]}  Qd7 {[%clk 0:01:48]} 14. Nge2 {[%clk 0:01:42]}  a5 {[%clk 0:01:26]} 15. b5 {[%clk 0:01:33]}  Ne7 {[%clk 0:01:24]} 16. d4 {[%clk 0:01:34]}  e4 {[%clk 0:01:18]} 17. d5 {[%clk 0:01:18]}  Ng6 {[%clk 0:01:10]} 18. Nd4 {[%clk 0:01:15]}  Bxd4 {[%clk 0:01:08]} 19. Rxd4 {[%clk 0:01:11]}  Qe7 {[%clk 0:00:56]} 20. Qc2 {[%clk 0:01:11]}  O-O {[%clk 0:00:44]} 21. Nxe4 {[%clk 0:01:04]}  c6 {[%clk 0:00:28]} 22. Nxf6+ {[%clk 0:00:27]}  Rxf6 {[%clk 0:00:27]} 23. Be4 {[%clk 0:00:25]}  Bxe4 {[%clk 0:00:21]} 24. Rxe4 {[%clk 0:00:25]}  Qf7 {[%clk 0:00:21]} 25. Rg4 {[%clk 0:00:19]}  Ne5 {[%clk 0:00:19]} 26. Bxe5 {[%clk 0:00:18]}  dxe5 {[%clk 0:00:19]} 27. Rhg1 {[%clk 0:00:19]}  Kh8 {[%clk 0:00:14]} 28. Rxh4+ {[%clk 0:00:18]}  Kg8 {[%clk 0:00:14]} 29. Rhg4 {[%clk 0:00:12]}  cxd5 {[%clk 0:00:14]} 30. cxd5 {[%clk 0:00:07]}  Kf8 {[%clk 0:00:12]} 31. Rxg7 {[%clk 0:00:07]}  Qxg7 {[%clk 0:00:12]} 32. Rxg7 {[%clk 0:00:08]}  Kxg7 {[%clk 0:00:13]} 33. Qc7+ {[%clk 0:00:08]}  Rf7 {[%clk 0:00:13]} 34. Qxe5+ {[%clk 0:00:08]}  Kg6 {[%clk 0:00:12]} 35. Qxb8 {[%clk 0:00:08]}  Rxf2 {[%clk 0:00:11]} 36. Qg3+ {[%clk 0:00:08]}  Kh5 {[%clk 0:00:08]} 37. Qxf2 {[%clk 0:00:07]} 1-0


[Site "https://www.chess.com"]

[Event "Titled Tuesday Blitz June 13 Early 2023"]
[White "Ibadov, Dashgyn"]
[Black "rikchessmx"]
[WhiteFideId "24107514"]
[WhiteElo "2208"]
[BlackElo "2306"]
[Result "1/2-1/2"]
[Round "1"]
[TimeControl "180+2"]
[Date "2023.06.13"]
[WhiteClock "0:00:03"]
[BlackClock "0:00:06"]
[Board "162"]

1. e4 {[%clk 0:02:57]}  e5 {[%clk 0:02:59]} 2. Nf3 {[%clk 0:02:57]}  Nc6 {[%clk 0:03:00]} 3. d4 {[%clk 0:02:57]}  exd4 {[%clk 0:02:59]} 4. Nxd4 {[%clk 0:02:58]}  Nf6 {[%clk 0:02:57]} 5. Nc3 {[%clk 0:02:57]}  Bb4 {[%clk 0:02:56]} 6. Nxc6 {[%clk 0:02:57]}  bxc6 {[%clk 0:02:56]} 7. Bd3 {[%clk 0:02:58]}  d5 {[%clk 0:02:56]} 8. exd5 {[%clk 0:02:59]}  cxd5 {[%clk 0:02:57]} 9. O-O {[%clk 0:02:59]}  O-O {[%clk 0:02:51]} 10. h3 {[%clk 0:02:59]}  h6 {[%clk 0:02:50]} 11. Qf3 {[%clk 0:02:58]}  c6 {[%clk 0:02:49]} 12. Bf4 {[%clk 0:02:57]}  Bd6 {[%clk 0:02:48]} 13. Na4 {[%clk 0:02:45]}  Rb8 {[%clk 0:02:44]} 14. Bxd6 {[%clk 0:02:35]}  Qxd6 {[%clk 0:02:43]} 15. Qg3 {[%clk 0:02:36]}  Qxg3 {[%clk 0:02:40]} 16. fxg3 {[%clk 0:02:37]}  Re8 {[%clk 0:02:19]} 17. Rae1 {[%clk 0:02:30]}  Be6 {[%clk 0:02:18]} 18. b3 {[%clk 0:02:24]}  Nd7 {[%clk 0:02:13]} 19. g4 {[%clk 0:02:01]}  c5 {[%clk 0:01:53]} 20. Bf5 {[%clk 0:02:01]}  Bxf5 {[%clk 0:01:45]} 21. gxf5 {[%clk 0:02:02]}  Kf8 {[%clk 0:01:36]} 22. Nc3 {[%clk 0:01:57]}  Nf6 {[%clk 0:01:32]} 23. g4 {[%clk 0:01:44]}  Rbd8 {[%clk 0:01:05]} 24. Rxe8+ {[%clk 0:01:42]}  Rxe8 {[%clk 0:01:05]} 25. Rd1 {[%clk 0:01:39]}  d4 {[%clk 0:00:55]} 26. Na4 {[%clk 0:01:28]}  Re2 {[%clk 0:00:54]} 27. Nxc5 {[%clk 0:01:25]}  Rxc2 {[%clk 0:00:53]} 28. b4 {[%clk 0:01:19]}  Rxa2 {[%clk 0:00:52]} 29. Rxd4 {[%clk 0:01:20]}  a5 {[%clk 0:00:47]} 30. Rd8+ {[%clk 0:01:01]}  Ke7 {[%clk 0:00:46]} 31. Ra8 {[%clk 0:01:02]}  Ra1+ {[%clk 0:00:32]} 32. Kg2 {[%clk 0:01:02]}  Ra2+ {[%clk 0:00:32]} 33. Kf3 {[%clk 0:01:00]}  Ra3+ {[%clk 0:00:32]} 34. Kg2 {[%clk 0:00:35]}  axb4 {[%clk 0:00:32]} 35. Rb8 {[%clk 0:00:33]}  Kd6 {[%clk 0:00:28]} 36. Rb5 {[%clk 0:00:15]}  Kc6 {[%clk 0:00:23]} 37. Rxb4 {[%clk 0:00:16]}  Kxc5 {[%clk 0:00:22]} 38. Rb7 {[%clk 0:00:16]}  Ne4 {[%clk 0:00:19]} 39. Rxf7 {[%clk 0:00:16]}  Rg3+ {[%clk 0:00:19]} 40. Kh2 {[%clk 0:00:16]}  Kd4 {[%clk 0:00:17]} 41. Rxg7 {[%clk 0:00:14]}  Ke3 {[%clk 0:00:16]} 42. f6 {[%clk 0:00:13]}  Rf3 {[%clk 0:00:16]} 43. Ra7 {[%clk 0:00:04]}  Rxf6 {[%clk 0:00:15]} 44. Ra3+ {[%clk 0:00:04]}  Ke2 {[%clk 0:00:15]} 45. Ra2+ {[%clk 0:00:03]}  Kf1 {[%clk 0:00:14]} 46. Ra1+ {[%clk 0:00:02]}  Kf2 {[%clk 0:00:14]} 47. Ra2+ {[%clk 0:00:02]}  Ke3 {[%clk 0:00:14]} 48. Ra3+ {[%clk 0:00:03]}  Kf4 {[%clk 0:00:14]} 49. Kg2 {[%clk 0:00:03]}  Rd6 {[%clk 0:00:14]} 50. Rf3+ {[%clk 0:00:04]}  Ke5 {[%clk 0:00:14]} 51. Rf5+ {[%clk 0:00:05]}  Kd4 {[%clk 0:00:13]} 52. Kf3 {[%clk 0:00:05]}  Rf6 {[%clk 0:00:12]} 53. Kf4 {[%clk 0:00:04]}  Ra6 {[%clk 0:00:07]} 54. h4 {[%clk 0:00:02]}  Ra2 {[%clk 0:00:05]} 55. Kf3 {[%clk 0:00:01]}  Ra3+ {[%clk 0:00:05]} 56. Kf4 {[%clk 0:00:01]}  Rh3 {[%clk 0:00:04]} 57. g5 {[%clk 0:00:01]}  Rxh4+ {[%clk 0:00:05]} 58. Kf3 {[%clk 0:00:02]}  h5 {[%clk 0:00:03]} 59. g6 {[%clk 0:00:02]}  Rg4 {[%clk 0:00:03]} 60. Rxh5 {[%clk 0:00:02]}  Rxg6 {[%clk 0:00:03]} 61. Ra5 {[%clk 0:00:02]}  Rf6+ {[%clk 0:00:03]} 62. Kg4 {[%clk 0:00:02]}  Nc5 {[%clk 0:00:02]} 63. Ra1 {[%clk 0:00:02]}  Re6 {[%clk 0:00:01]} 64. Kf5 {[%clk 0:00:02]}  Re4 {[%clk 0:00:02]} 65. Rd1+ {[%clk 0:00:03]}  Nd3 {[%clk 0:00:03]} 66. Ra1 {[%clk 0:00:02]}  Re5+ {[%clk 0:00:04]} 67. Kf6 {[%clk 0:00:02]}  Rc5 {[%clk 0:00:04]} 68. Ra4+ {[%clk 0:00:03]}  Rc4 {[%clk 0:00:05]} 69. Rxc4+ {[%clk 0:00:03]}  Kxc4 {[%clk 0:00:06]} 1/2-1/2


[Site "https://www.chess.com"]

[Event "Titled Tuesday Blitz June 13 Early 2023"]
[White "Simonovic, Miroslav"]
[Black "Sourath Biswas"]
[WhiteFideId "919152"]
[BlackFideId "35091484"]
[WhiteElo "2075"]
[BlackElo "2171"]
[Result "0-1"]
[Round "1"]
[TimeControl "180+2"]
[Date "2023.06.13"]
[WhiteClock "0:00:04"]
[BlackClock "0:00:21"]
[Board "163"]

1. d4 {[%clk 0:02:58]}  Nf6 {[%clk 0:02:59]} 2. Bg5 {[%clk 0:02:58]}  d5 {[%clk 0:02:56]} 3. Bxf6 {[%clk 0:02:58]}  exf6 {[%clk 0:02:54]} 4. e3 {[%clk 0:02:58]}  Be7 {[%clk 0:02:39]} 5. c4 {[%clk 0:02:57]}  O-O {[%clk 0:02:38]} 6. Nc3 {[%clk 0:02:56]}  dxc4 {[%clk 0:02:39]} 7. Bxc4 {[%clk 0:02:56]}  c5 {[%clk 0:02:39]} 8. Nge2 {[%clk 0:02:48]}  cxd4 {[%clk 0:02:39]} 9. Qxd4 {[%clk 0:02:48]}  Nc6 {[%clk 0:02:38]} 10. Qxd8 {[%clk 0:02:46]}  Rxd8 {[%clk 0:02:39]} 11. a3 {[%clk 0:02:37]}  a6 {[%clk 0:02:37]} 12. Rd1 {[%clk 0:02:35]}  Bf5 {[%clk 0:02:31]} 13. e4 {[%clk 0:02:22]}  Rxd1+ {[%clk 0:02:31]} 14. Kxd1 {[%clk 0:02:20]}  Rd8+ {[%clk 0:02:31]} 15. Kc2 {[%clk 0:02:20]}  Bg4 {[%clk 0:02:24]} 16. f3 {[%clk 0:02:19]}  Bc8 {[%clk 0:02:25]} 17. Rd1 {[%clk 0:02:14]}  Rxd1 {[%clk 0:02:12]} 18. Nxd1 {[%clk 0:02:14]}  Bd6 {[%clk 0:02:07]} 19. h3 {[%clk 0:02:09]}  Ne5 {[%clk 0:02:05]} 20. Bd5 {[%clk 0:02:06]}  Ng6 {[%clk 0:02:05]} 21. b4 {[%clk 0:02:01]}  Nh4 {[%clk 0:02:05]} 22. Ne3 {[%clk 0:01:59]}  g6 {[%clk 0:01:52]} 23. Kc3 {[%clk 0:01:01]}  Bb8 {[%clk 0:01:41]} 24. a4 {[%clk 0:00:56]}  Ba7 {[%clk 0:01:39]} 25. Nd4 {[%clk 0:00:56]}  Bb8 {[%clk 0:01:34]} 26. Ne2 {[%clk 0:00:55]}  Be5+ {[%clk 0:01:31]} 27. Kc4 {[%clk 0:00:50]}  Bb8 {[%clk 0:01:05]} 28. b5 {[%clk 0:00:42]}  axb5+ {[%clk 0:00:56]} 29. axb5 {[%clk 0:00:43]}  Kf8 {[%clk 0:00:54]} 30. f4 {[%clk 0:00:40]}  g5 {[%clk 0:00:40]} 31. g3 {[%clk 0:00:38]}  Ng6 {[%clk 0:00:36]} 32. f5 {[%clk 0:00:12]}  Ne5+ {[%clk 0:00:37]} 33. Kc5 {[%clk 0:00:11]}  Ba7+ {[%clk 0:00:36]} 34. b6 {[%clk 0:00:11]}  Nd7+ {[%clk 0:00:36]} 35. Kb5 {[%clk 0:00:11]}  Bxb6 {[%clk 0:00:35]} 36. Nc4 {[%clk 0:00:11]}  Bc7 {[%clk 0:00:34]} 37. g4 {[%clk 0:00:10]}  h5 {[%clk 0:00:33]} 38. Nd4 {[%clk 0:00:10]}  hxg4 {[%clk 0:00:32]} 39. hxg4 {[%clk 0:00:11]}  Ke7 {[%clk 0:00:29]} 40. Na5 {[%clk 0:00:07]}  Ne5 {[%clk 0:00:26]} 41. Nxb7 {[%clk 0:00:06]}  Bd7+ {[%clk 0:00:25]} 42. Kb4 {[%clk 0:00:04]}  Nxg4 {[%clk 0:00:24]} 43. Nc5 {[%clk 0:00:04]}  Bd6 {[%clk 0:00:20]} 44. Nb5 {[%clk 0:00:04]}  Ne3 {[%clk 0:00:18]} 45. Nxd6 {[%clk 0:00:03]}  Nxd5+ {[%clk 0:00:18]} 46. exd5 {[%clk 0:00:01]}  Kxd6 {[%clk 0:00:18]} 47. Kc4 {[%clk 0:00:02]}  Bxf5 {[%clk 0:00:18]} 48. Nb7+ {[%clk 0:00:01]}  Kc7 {[%clk 0:00:19]} 49. Nc5 {[%clk 0:00:02]}  Bh3 {[%clk 0:00:17]} 50. Kd4 {[%clk 0:00:02]}  Bg2 {[%clk 0:00:16]} 51. Nd3 {[%clk 0:00:03]}  Kd6 {[%clk 0:00:16]} 52. Nb2 {[%clk 0:00:03]}  Bxd5 {[%clk 0:00:16]} 53. Nd3 {[%clk 0:00:03]}  f5 {[%clk 0:00:16]} 54. Nf2 {[%clk 0:00:03]}  g4 {[%clk 0:00:16]} 55. Ke3 {[%clk 0:00:04]}  Ke5 {[%clk 0:00:17]} 56. Nd3+ {[%clk 0:00:04]}  Kf6 {[%clk 0:00:18]} 57. Kf4 {[%clk 0:00:04]}  Be4 {[%clk 0:00:18]} 58. Ne5 {[%clk 0:00:04]}  Ke6 {[%clk 0:00:18]} 59. Nxg4 {[%clk 0:00:04]}  fxg4 {[%clk 0:00:18]} 60. Kxe4 {[%clk 0:00:04]}  f5+ {[%clk 0:00:18]} 61. Kf4 {[%clk 0:00:05]}  Kf6 {[%clk 0:00:19]} 62. Kg3 {[%clk 0:00:05]}  Kg5 {[%clk 0:00:20]} 63. Kf2 {[%clk 0:00:04]}  f4 {[%clk 0:00:21]} 0-1


[Site "https://www.chess.com"]

[Event "Titled Tuesday Blitz June 13 Early 2023"]
[White "Atanasov, Anthony"]
[Black "Bashkansky, Ethan"]
[WhiteFideId "2623897"]
[BlackFideId "2071533"]
[WhiteElo "2328"]
[BlackElo "2300"]
[Result "1-0"]
[Round "1"]
[TimeControl "180+2"]
[Date "2023.06.13"]
[WhiteClock "0:01:56"]
[BlackClock "0:00:00"]
[Board "164"]

1. d4 {[%clk 0:03:00]}  f5 {[%clk 0:02:53]} 2. Bg5 {[%clk 0:02:57]}  g6 {[%clk 0:02:51]} 3. h4 {[%clk 0:02:45]}  h6 {[%clk 0:02:49]} 4. Bf4 {[%clk 0:02:45]}  d6 {[%clk 0:02:48]} 5. e3 {[%clk 0:02:44]}  Nf6 {[%clk 0:02:45]} 6. Qf3 {[%clk 0:02:44]}  c6 {[%clk 0:02:22]} 7. Nc3 {[%clk 0:02:40]}  Be6 {[%clk 0:02:18]} 8. O-O-O {[%clk 0:02:36]}  Nbd7 {[%clk 0:01:51]} 9. Bd3 {[%clk 0:02:29]}  Qa5 {[%clk 0:01:31]} 10. a3 {[%clk 0:02:25]}  Nd5 {[%clk 0:01:10]} 11. Nxd5 {[%clk 0:02:24]}  Qxd5 {[%clk 0:01:01]} 12. Qg3 {[%clk 0:02:22]}  Bf7 {[%clk 0:00:52]} 13. Ne2 {[%clk 0:02:15]}  Qa2 {[%clk 0:00:47]} 14. Nc3 {[%clk 0:02:10]}  Qa1+ {[%clk 0:00:38]} 15. Nb1 {[%clk 0:02:11]}  Nf6 {[%clk 0:00:22]} 16. f3 {[%clk 0:02:07]}  Nh5 {[%clk 0:00:21]} 17. Qf2 {[%clk 0:02:06]}  Ba2 {[%clk 0:00:20]} 18. c3 {[%clk 0:02:05]}  Bg7 {[%clk 0:00:18]} 19. Bh2 {[%clk 0:02:00]}  Bxb1 {[%clk 0:00:17]} 20. Bxb1 {[%clk 0:01:58]}  O-O-O {[%clk 0:00:10]} 21. Kc2 {[%clk 0:01:56]}  Kb8 {[%clk 0:00:10]} 22. Kb3 {[%clk 0:01:56]}  c5 {[%clk 0:00:03]} 23. Bd3 {[%clk 0:01:55]}  c4+ {[%clk 0:00:02]} 24. Bxc4 {[%clk 0:01:55]}  Qxd1+ {[%clk 0:00:00]} 25. Rxd1 {[%clk 0:01:56]} 1-0


[Site "https://www.chess.com"]

[Event "Titled Tuesday Blitz June 13 Early 2023"]
[White "Domingo Nunez, Alejandro"]
[Black "Marchesich, Giovanni"]
[WhiteFideId "22245561"]
[BlackFideId "2824790"]
[WhiteElo "2291"]
[BlackElo "2213"]
[Result "1-0"]
[Round "1"]
[TimeControl "180+2"]
[Date "2023.06.13"]
[WhiteClock "0:00:05"]
[BlackClock "0:00:00"]
[Board "166"]

1. Nf3 {[%clk 0:03:00]}  c5 {[%clk 0:02:47]} 2. g3 {[%clk 0:03:00]}  g6 {[%clk 0:02:35]} 3. Bg2 {[%clk 0:02:59]}  Bg7 {[%clk 0:02:31]} 4. d4 {[%clk 0:02:59]}  cxd4 {[%clk 0:02:29]} 5. Nxd4 {[%clk 0:03:00]}  Nf6 {[%clk 0:02:22]} 6. c4 {[%clk 0:03:00]}  O-O {[%clk 0:02:22]} 7. Nc3 {[%clk 0:02:59]}  Nc6 {[%clk 0:02:21]} 8. Nc2 {[%clk 0:02:50]}  Qa5 {[%clk 0:02:16]} 9. O-O {[%clk 0:02:50]}  d6 {[%clk 0:02:06]} 10. Nd5 {[%clk 0:02:32]}  Nxd5 {[%clk 0:01:45]} 11. cxd5 {[%clk 0:02:33]}  Nb8 {[%clk 0:01:36]} 12. Bd2 {[%clk 0:02:12]}  Qd8 {[%clk 0:01:31]} 13. Rb1 {[%clk 0:02:06]}  Na6 {[%clk 0:01:29]} 14. b4 {[%clk 0:02:04]}  Bd7 {[%clk 0:01:20]} 15. Ne3 {[%clk 0:01:33]}  Rc8 {[%clk 0:01:15]} 16. Qb3 {[%clk 0:01:30]}  f5 {[%clk 0:01:04]} 17. Nc4 {[%clk 0:01:13]}  Bb5 {[%clk 0:00:49]} 18. Rfc1 {[%clk 0:01:12]}  Qd7 {[%clk 0:00:47]} 19. a3 {[%clk 0:00:24]}  h6 {[%clk 0:00:39]} 20. Qa2 {[%clk 0:00:23]}  g5 {[%clk 0:00:34]} 21. e3 {[%clk 0:00:22]}  Ba4 {[%clk 0:00:22]} 22. Bc3 {[%clk 0:00:18]}  Bxc3 {[%clk 0:00:20]} 23. Rxc3 {[%clk 0:00:19]}  b5 {[%clk 0:00:20]} 24. Nb6 {[%clk 0:00:05]}  axb6 {[%clk 0:00:19]} 25. Rc6 {[%clk 0:00:06]}  Nb8 {[%clk 0:00:12]} 26. Rbc1 {[%clk 0:00:06]}  Kh7 {[%clk 0:00:10]} 27. h4 {[%clk 0:00:05]}  Nxc6 {[%clk 0:00:08]} 28. dxc6 {[%clk 0:00:05]}  Qe8 {[%clk 0:00:07]} 29. hxg5 {[%clk 0:00:05]}  hxg5 {[%clk 0:00:08]} 30. Bd5 {[%clk 0:00:05]}  Rf6 {[%clk 0:00:06]} 31. Be6 {[%clk 0:00:05]}  Rc7 {[%clk 0:00:06]} 32. Qd5 {[%clk 0:00:05]}  Qg6 {[%clk 0:00:04]} 33. Bd7 {[%clk 0:00:05]}  e6 {[%clk 0:00:04]} 34. Qxd6 {[%clk 0:00:06]}  Qg7 {[%clk 0:00:04]} 35. Qxc7 {[%clk 0:00:06]}  Qh6 {[%clk 0:00:04]} 36. Qe5 {[%clk 0:00:05]}  Kg6 {[%clk 0:00:04]} 37. Be8+ {[%clk 0:00:05]}  Kg7 {[%clk 0:00:00]} 38. c7 {[%clk 0:00:05]} 1-0


[Site "https://www.chess.com"]

[Event "Titled Tuesday Blitz June 13 Early 2023"]
[White "Wieczorek, Zbigniew"]
[Black "Koellner, Ruben Gideon"]
[WhiteFideId "1102001"]
[BlackFideId "12993093"]
[WhiteElo "2293"]
[BlackElo "2314"]
[Result "1-0"]
[Round "1"]
[TimeControl "180+2"]
[Date "2023.06.13"]
[WhiteClock "0:01:40"]
[BlackClock "0:00:00"]
[Board "167"]

1. Nf3 {[%clk 0:02:59]}  d6 {[%clk 0:02:56]} 2. c4 {[%clk 0:02:58]}  e5 {[%clk 0:02:38]} 3. Nc3 {[%clk 0:02:58]}  Nf6 {[%clk 0:02:37]} 4. g3 {[%clk 0:02:58]}  Be7 {[%clk 0:02:16]} 5. d3 {[%clk 0:02:56]}  O-O {[%clk 0:01:22]} 6. Bg2 {[%clk 0:02:56]}  c6 {[%clk 0:01:15]} 7. O-O {[%clk 0:02:53]}  Be6 {[%clk 0:01:06]} 8. Rb1 {[%clk 0:02:35]}  Nbd7 {[%clk 0:00:54]} 9. Ng5 {[%clk 0:02:35]}  Bf5 {[%clk 0:00:54]} 10. e4 {[%clk 0:02:34]}  Bg6 {[%clk 0:00:52]} 11. f4 {[%clk 0:02:31]}  h6 {[%clk 0:00:50]} 12. Nf3 {[%clk 0:02:31]}  Qb6+ {[%clk 0:00:46]} 13. Kh1 {[%clk 0:02:30]}  a5 {[%clk 0:00:46]} 14. f5 {[%clk 0:02:29]}  Bh5 {[%clk 0:00:46]} 15. h3 {[%clk 0:02:29]}  Bxf3 {[%clk 0:00:45]} 16. Bxf3 {[%clk 0:02:29]}  Rfd8 {[%clk 0:00:45]} 17. Qe2 {[%clk 0:02:28]}  Qc7 {[%clk 0:00:38]} 18. h4 {[%clk 0:02:27]}  Rab8 {[%clk 0:00:35]} 19. Be3 {[%clk 0:02:20]}  b5 {[%clk 0:00:35]} 20. b3 {[%clk 0:02:20]}  b4 {[%clk 0:00:33]} 21. Na4 {[%clk 0:02:18]}  Nc5 {[%clk 0:00:19]} 22. Nxc5 {[%clk 0:02:10]}  dxc5 {[%clk 0:00:20]} 23. Rg1 {[%clk 0:02:10]}  Nh7 {[%clk 0:00:19]} 24. Rbd1 {[%clk 0:02:09]}  Rd7 {[%clk 0:00:19]} 25. Qf2 {[%clk 0:02:06]}  Qd8 {[%clk 0:00:18]} 26. Be2 {[%clk 0:02:06]}  Qf8 {[%clk 0:00:14]} 27. g4 {[%clk 0:02:04]}  f6 {[%clk 0:00:10]} 28. Rg2 {[%clk 0:01:58]}  a4 {[%clk 0:00:10]} 29. Rdg1 {[%clk 0:01:56]}  axb3 {[%clk 0:00:10]} 30. axb3 {[%clk 0:01:55]}  Ra8 {[%clk 0:00:11]} 31. g5 {[%clk 0:01:47]}  fxg5 {[%clk 0:00:11]} 32. hxg5 {[%clk 0:01:47]}  Nxg5 {[%clk 0:00:09]} 33. Bxg5 {[%clk 0:01:46]}  Bxg5 {[%clk 0:00:09]} 34. Rxg5 {[%clk 0:01:44]}  hxg5 {[%clk 0:00:10]} 35. Rxg5 {[%clk 0:01:42]}  Rd6 {[%clk 0:00:06]} 36. Qh2 {[%clk 0:01:40]}  Ra1+ {[%clk 0:00:00]} 37. Kg2 {[%clk 0:01:40]} 1-0


[Site "https://www.chess.com"]

[Event "Titled Tuesday Blitz June 13 Early 2023"]
[White "Nagare Kaivalya Sandip"]
[Black "Skuhala, Barbara"]
[WhiteFideId "25957929"]
[BlackFideId "14605465"]
[WhiteElo "2024"]
[BlackElo "2105"]
[Result "1-0"]
[Round "1"]
[TimeControl "180+2"]
[Date "2023.06.13"]
[WhiteClock "0:02:12"]
[BlackClock "0:02:14"]
[Board "168"]

1. e4 {[%clk 0:03:00]}  c5 {[%clk 0:02:57]} 2. Nf3 {[%clk 0:02:59]}  d6 {[%clk 0:02:57]} 3. d4 {[%clk 0:02:59]}  cxd4 {[%clk 0:02:56]} 4. Nxd4 {[%clk 0:03:00]}  Nf6 {[%clk 0:02:55]} 5. Nc3 {[%clk 0:03:00]}  a6 {[%clk 0:02:54]} 6. Bg5 {[%clk 0:03:00]}  h6 {[%clk 0:02:53]} 7. Bxf6 {[%clk 0:02:57]}  exf6 {[%clk 0:02:53]} 8. Bc4 {[%clk 0:02:56]}  Nc6 {[%clk 0:02:52]} 9. O-O {[%clk 0:02:56]}  Be7 {[%clk 0:02:45]} 10. Nd5 {[%clk 0:02:53]}  Be6 {[%clk 0:02:44]} 11. Nxe6 {[%clk 0:02:49]}  fxe6 {[%clk 0:02:42]} 12. Qh5+ {[%clk 0:02:49]}  Kf8 {[%clk 0:02:41]} 13. Nf4 {[%clk 0:02:50]}  Nd4 {[%clk 0:02:35]} 14. Ng6+ {[%clk 0:02:45]}  Kg8 {[%clk 0:02:35]} 15. Rad1 {[%clk 0:02:43]}  b5 {[%clk 0:02:33]} 16. Bd5 {[%clk 0:02:29]}  exd5 {[%clk 0:02:30]} 17. Rxd4 {[%clk 0:02:27]}  dxe4 {[%clk 0:02:28]} 18. Rxe4 {[%clk 0:02:24]}  Bf8 {[%clk 0:02:28]} 19. Rfe1 {[%clk 0:02:15]}  Rc8 {[%clk 0:02:20]} 20. Nxh8 {[%clk 0:02:12]}  Kxh8 {[%clk 0:02:14]} 21. Re8 {[%clk 0:02:12]} 1-0


[Site "https://www.chess.com"]

[Event "Titled Tuesday Blitz June 13 Early 2023"]
[White "Moral Garcia, Serafin"]
[Black "Samaganova, Aleksandra"]
[WhiteFideId "2201925"]
[BlackFideId "13800221"]
[WhiteElo "2274"]
[BlackElo "1858"]
[Result "1-0"]
[Round "1"]
[TimeControl "180+2"]
[Date "2023.06.13"]
[WhiteClock "0:00:19"]
[BlackClock "0:00:00"]
[Board "170"]

1. c4 {[%clk 0:02:59]}  c5 {[%clk 0:02:58]} 2. Nc3 {[%clk 0:02:58]}  Nf6 {[%clk 0:02:57]} 3. g3 {[%clk 0:02:58]}  e6 {[%clk 0:02:51]} 4. Bg2 {[%clk 0:02:55]}  Nc6 {[%clk 0:02:49]} 5. Nf3 {[%clk 0:02:46]}  d5 {[%clk 0:02:45]} 6. cxd5 {[%clk 0:02:45]}  exd5 {[%clk 0:02:44]} 7. d4 {[%clk 0:02:45]}  cxd4 {[%clk 0:02:42]} 8. Nxd4 {[%clk 0:02:45]}  Be7 {[%clk 0:02:26]} 9. O-O {[%clk 0:02:42]}  O-O {[%clk 0:02:18]} 10. b3 {[%clk 0:02:31]}  h6 {[%clk 0:02:03]} 11. Bb2 {[%clk 0:02:28]}  Be6 {[%clk 0:01:38]} 12. Rc1 {[%clk 0:02:25]}  Rc8 {[%clk 0:01:33]} 13. Ncb5 {[%clk 0:02:03]}  Nxd4 {[%clk 0:01:14]} 14. Nxd4 {[%clk 0:01:49]}  Qd7 {[%clk 0:01:07]} 15. Qd3 {[%clk 0:01:46]}  a6 {[%clk 0:01:06]} 16. Rfd1 {[%clk 0:01:41]}  Rxc1 {[%clk 0:01:06]} 17. Rxc1 {[%clk 0:01:39]}  Rc8 {[%clk 0:01:05]} 18. Rd1 {[%clk 0:01:39]}  Qc7 {[%clk 0:00:56]} 19. h3 {[%clk 0:01:19]}  Nd7 {[%clk 0:00:49]} 20. Nxe6 {[%clk 0:00:56]}  fxe6 {[%clk 0:00:47]} 21. Bxd5 {[%clk 0:00:56]}  Nf8 {[%clk 0:00:27]} 22. Be4 {[%clk 0:00:42]}  Bc5 {[%clk 0:00:24]} 23. Rc1 {[%clk 0:00:37]}  Qb8 {[%clk 0:00:19]} 24. Kg2 {[%clk 0:00:29]}  Rd8 {[%clk 0:00:12]} 25. Qf3 {[%clk 0:00:21]}  b6 {[%clk 0:00:07]} 26. Qg4 {[%clk 0:00:20]}  Qa7 {[%clk 0:00:03]} 27. e3 {[%clk 0:00:19]}  Qf7 {[%clk 0:00:02]} 28. Qf3 {[%clk 0:00:18]}  Qe7 {[%clk 0:00:02]} 29. Bc3 {[%clk 0:00:18]}  a5 {[%clk 0:00:02]} 30. Rc2 {[%clk 0:00:17]}  Ba3 {[%clk 0:00:02]} 31. Rd2 {[%clk 0:00:17]}  Rc8 {[%clk 0:00:02]} 32. Be5 {[%clk 0:00:17]}  Bc5 {[%clk 0:00:02]} 33. Qg4 {[%clk 0:00:16]}  Kh8 {[%clk 0:00:01]} 34. h4 {[%clk 0:00:17]}  Kg8 {[%clk 0:00:01]} 35. Qh5 {[%clk 0:00:17]}  Nh7 {[%clk 0:00:01]} 36. Qg6 {[%clk 0:00:16]}  Nf8 {[%clk 0:00:01]} 37. Qg4 {[%clk 0:00:16]}  Qf7 {[%clk 0:00:02]} 38. Rc2 {[%clk 0:00:15]}  Qe7 {[%clk 0:00:02]} 39. a3 {[%clk 0:00:15]}  Rd8 {[%clk 0:00:02]} 40. a4 {[%clk 0:00:15]}  Bb4 {[%clk 0:00:02]} 41. Rc6 {[%clk 0:00:14]}  Rd7 {[%clk 0:00:03]} 42. Rxb6 {[%clk 0:00:14]}  Bc5 {[%clk 0:00:03]} 43. Ra6 {[%clk 0:00:14]}  Qf7 {[%clk 0:00:03]} 44. Rxa5 {[%clk 0:00:13]}  Bb4 {[%clk 0:00:03]} 45. Rb5 {[%clk 0:00:13]}  Be1 {[%clk 0:00:04]} 46. Qe2 {[%clk 0:00:14]}  Bd2 {[%clk 0:00:02]} 47. a5 {[%clk 0:00:13]}  Bc1 {[%clk 0:00:02]} 48. Qf3 {[%clk 0:00:12]}  Ba3 {[%clk 0:00:03]} 49. Qxf7+ {[%clk 0:00:12]}  Kxf7 {[%clk 0:00:04]} 50. a6 {[%clk 0:00:12]}  Ra7 {[%clk 0:00:04]} 51. Rb7+ {[%clk 0:00:12]}  Rxb7 {[%clk 0:00:04]} 52. axb7 {[%clk 0:00:12]}  Nd7 {[%clk 0:00:05]} 53. b8=Q {[%clk 0:00:13]}  Nxb8 {[%clk 0:00:05]} 54. Bxb8 {[%clk 0:00:13]}  Bb4 {[%clk 0:00:06]} 55. Be5 {[%clk 0:00:13]}  Bd2 {[%clk 0:00:05]} 56. f4 {[%clk 0:00:14]}  Bb4 {[%clk 0:00:06]} 57. Kf3 {[%clk 0:00:14]}  g6 {[%clk 0:00:06]} 58. Bd3 {[%clk 0:00:15]}  h5 {[%clk 0:00:06]} 59. g4 {[%clk 0:00:15]}  hxg4+ {[%clk 0:00:06]} 60. Kxg4 {[%clk 0:00:16]}  Be1 {[%clk 0:00:07]} 61. e4 {[%clk 0:00:16]}  Bb4 {[%clk 0:00:06]} 62. h5 {[%clk 0:00:16]}  gxh5+ {[%clk 0:00:06]} 63. Kxh5 {[%clk 0:00:16]}  Bd2 {[%clk 0:00:07]} 64. Kg5 {[%clk 0:00:17]}  Ke7 {[%clk 0:00:07]} 65. Bc4 {[%clk 0:00:17]}  Kd7 {[%clk 0:00:07]} 66. Kg6 {[%clk 0:00:18]}  Be1 {[%clk 0:00:05]} 67. Kf7 {[%clk 0:00:18]}  Bd2 {[%clk 0:00:04]} 68. Bxe6+ {[%clk 0:00:18]}  Kd8 {[%clk 0:00:00]} 69. f5 {[%clk 0:00:19]} 1-0


[Site "https://www.chess.com"]